Cogmind - Beta 9.4 @@@ ROGUE MODE // 2020.01.21 @ 17:53:39 // Winter2019/RPGLIKE Player: Daniexpert Result: Escaped! Performance ------------- Evolutions (9) 4500 Regions Visited (30) 6000 Robots Destroyed (600) 3000 Value Destroyed (26781) 26781 Prototype IDs (82) 1640 Alien Tech Used (2) 400 Bonus (18268) 18268 TOTAL SCORE: 60589 Bonus ------- High Alert Combat Kills 5546 Follower Combat Kills 3363 Network Hubs Disabled 200 Met Data Miner 300 Met Imprinter 300 Met Zhirov 300 Met R17 at Cetus 500 Met R17 at Research 2000 Acquired SGEMP 2000 Delivered SGEMP 2000 Win 3000 Friendly Fire -1241 Cogmind --------- Core Integrity 1703/2400 Matter 267/300 Energy 724/730 System Corruption 9% Temperature Cool (6) Movement Walking (100) Location To Epsilon Eridani Parts ------- > --- POWER (2) -------- Heavy Antimatter Reactor Particle Reactor > --- PROPULSION (5) --- Biometal Heavy Treads Myomer Exoskeleton > --- UTILITY (10) ----- Experimental Cooling System Advanced Signal Interpreter Makeshift Terrain Scanner Advanced Terrain Scan Processor Experimental Targeting Computer Experimental Core Analyzer Advanced Weapon Cycler Medium Regenerative Plating Advanced Shield Generator System Restoration Module > --- WEAPON (3) ------- Quantum Rifle Compact HERF Cannon Molecular Scythe > --- INVENTORY (8) ---- Hypervelocity EM Gauss Rifle Gamma Rifle Phase Gun Advanced Variable Charge Gun Compact HERF Cannon Heavy Gauss Cannon Advanced EMP Blaster Peak State ------------ > --- POWER ------------ Heavy Antimatter Reactor Particle Reactor > --- PROPULSION ------- Centrium Heavy Treads Myomer Exoskeleton > --- UTILITY ---------- Experimental Cooling System Experimental Sensor Array Advanced Signal Interpreter Makeshift Terrain Scanner Advanced Terrain Scan Processor Experimental Targeting Computer Experimental Melee Analysis Suite Experimental Core Analyzer Improved Phase Shifter Medium Regenerative Plating > --- WEAPON ----------- Advanced Variable Charge Gun Heavy Gauss Cannon Compact Linear Accelerator > --- INVENTORY -------- Advanced Weapon Cycler Advanced Shield Generator Hypervelocity EM Gauss Rifle Advanced EMP Blaster Molecular Scythe SGEMP Prototype [Rating: 166] Favorites ----------- Power Cooled Ion Engine Engine Cooled Ion Engine Power Core Neutrino Core Reactor Light Antimatter Reactor Propulsion Armored Treads Treads Armored Treads Leg Myomer Exoskeleton Utility Makeshift Terrain Scanner Device Makeshift Terrain Scanner Processor Advanced Terrain Scan Processor Protection Medium Regenerative Plating Weapon Improved EM Pulse Cannon Energy Gun Quantum Rifle Energy Cannon Improved EM Pulse Cannon Ballistic Gun Assault Rifle Ballistic Cannon Gauss Cannon Launcher Advanced EMP Blaster Special Weapon Flamer Impact Weapon Impact Mace Slashing Weapon Phasing Sabre Piercing Weapon Makeshift Spear Build | -11 -10 -10 -10 -9 -8 -8 -7 -7 -7 -7 -6 -6 -6 -6 -6 -5 -5 -5 -5 -5 -5 -4 -4 -4 -4 -3 -3 -3 -2 -1 ------- Run | Scr Mat Min Exi Min Mat Sto Fac Low Low Zio Pro Fac Low Low Dat Pro Fac Ext Cet Arc Hub Fac Upp Upp Zhi Pro Res Tes Res Acc Slots Evolved 15 | 2 1 . . 1 2 1 3 . . . . 2 . . . 1 . . . . . 1 . . . . . 1 . . Power 1 | . . . . . . . . . . . . 1 . . . . . . . . . . . . . . . . . . Propulsion 3 | 1 . . . . . . 1 . . . . . . . . . . . . . . . . . . . . 1 . . Utility 9 | . 1 . . 1 2 1 1 . . . . 1 . . . 1 . . . . . 1 . . . . . . . . Weapon 2 | 1 . . . . . . 1 . . . . . . . . . . . . . . . . . . . . . . . Parts Attached 459 | 6 7 2 2 5 43 21 35 5 11 2 3 24 7 9 . 10 22 21 17 5 31 30 3 4 7 2 14 56 26 29 Power 19 | 1 1 . . . 3 . . . . . . 1 . 1 . 1 2 1 . . . 2 . . 1 . 3 2 . . Engine 5 | 1 1 . . . 3 . . . . . . . . . . . . . . . . . . . . . . . . . Core 4 | . . . . . . . . . . . . . . 1 . 1 1 1 . . . . . . . . . . . . Reactor 10 | . . . . . . . . . . . . 1 . . . . 1 . . . . 2 . . 1 . 3 2 . . Propulsion 41 | 2 2 . . 2 6 . 5 1 . . . 3 . . . . 3 2 4 . . . . . 2 . . 7 1 1 Treads 36 | 2 2 . . 2 6 . 5 1 . . . 3 . . . . 3 2 4 . . . . . 1 . . 4 . 1 Leg 5 | . . . . . . . . . . . . . . . . . . . . . . . . . 1 . . 3 1 . Wheel . | . . . . . . . . . . . . . . . . . . . . . . . . . . . . . . . Hover . | . . . . . . . . . . . . . . . . . . . . . . . . . . . . . . . Flight . | . . . . . . . . . . . . . . . . . . . . . . . . . . . . . . . Utility 143 | 1 2 . 2 1 5 2 11 1 . 2 . 4 1 . . 5 7 8 3 3 20 15 2 3 4 . 2 19 11 9 Device 101 | 1 1 . 1 . . 1 2 1 . 1 . 3 . . . 3 3 4 2 3 19 12 2 3 3 . 2 14 11 9 Storage . | . . . . . . . . . . . . . . . . . . . . . . . . . . . . . . . Processor 13 | . 1 . 1 . 3 . 3 . . . . . 1 . . 1 . . . . . . . . . . . 3 . . Hackware . | . . . . . . . . . . . . . . . . . . . . . . . . . . . . . . . Protection 29 | . . . . 1 2 1 6 . . 1 . 1 . . . 1 4 4 1 . 1 3 . . 1 . . 2 . . Artifact . | . . . . . . . . . . . . . . . . . . . . . . . . . . . . . . . Weapon 256 | 2 2 2 . 2 29 19 19 3 11 . 3 16 6 8 . 4 10 10 10 2 11 13 1 1 . 2 9 28 14 19 Energy Gun 46 | 1 1 1 . 1 4 3 . . . . . . . . . . 1 1 6 2 3 3 1 . . . 4 6 5 3 Energy Cannon 48 | . . . . . 13 4 5 . 1 . . 4 2 . . . 3 2 . . 1 1 . . . . 2 3 4 3 Ballistic Gun 16 | 1 1 . . 1 . 4 1 . 2 . . . . . . . . 4 2 . . . . . . . . . . . Ballistic Cannon 48 | . . . . . . . 6 2 4 . 1 5 . 4 . 1 2 2 . . 2 4 . . . . 2 8 1 4 Launcher 37 | . . 1 . . 8 5 . . 1 . 1 5 . 2 . 1 . 1 2 . 2 . . . . 1 . 1 2 4 Special Weapon 2 | . . . . . . . . . 2 . . . . . . . . . . . . . . . . . . . . . Impact Weapon 1 | . . . . . . . 1 . . . . . . . . . . . . . . . . . . . . . . . Slashing Weapon 48 | . . . . . . . 5 1 1 . 1 2 4 2 . 2 4 . . . 2 5 . 1 . 1 . 10 2 5 Piercing Weapon 10 | . . . . . 4 3 1 . . . . . . . . . . . . . 1 . . . . . 1 . . . Special Melee Weapon . | . . . . . . . . . . . . . . . . . . . . . . . . . . . . . . . Unidentified Prototypes 40 | . . . . . 2 4 1 1 . 1 . 1 . . . 1 2 1 4 1 1 1 . . 5 . 5 9 . . Parts Lost 4 | . . . . . 1 . . . . . . . . . . . . . . . . . . . . . . 1 . 2 Power . | . . . . . . . . . . . . . . . . . . . . . . . . . . . . . . . Propulsion . | . . . . . . . . . . . . . . . . . . . . . . . . . . . . . . . Utility 3 | . . . . . 1 . . . . . . . . . . . . . . . . . . . . . . . . 2 Weapon 1 | . . . . . . . . . . . . . . . . . . . . . . . . . . . . 1 . . Highest Loss Streak 1 | . . . . . 1 . . . . . . . . . . . . . . . . . . . . . . 1 . 1 Average Slot Usage (%) 95 | . 98 100 100 100 99 100 99 99 100 100 100 98 99 97 100 99 99 99 89 88 87 88 89 89 88 89 88 87 81 84 Engine 4 | . 15 14 14 13 11 9 7 6 6 6 6 5 4 . . . . . . . . . . . . . . . . . Reactor 3 | . . . . . . . . . . . . 1 5 5 5 5 5 5 5 5 5 9 10 10 10 10 10 10 10 10 Treads 19 | . 30 28 28 27 22 19 20 22 26 26 26 24 23 23 23 22 22 21 12 11 11 10 10 10 10 10 10 8 5 5 Device 17 | . 14 14 14 13 11 13 14 13 13 13 13 17 17 17 17 15 16 15 15 16 17 24 26 26 25 26 26 25 24 24 Processor 21 | . 4 14 14 13 19 28 25 27 26 26 26 24 23 23 23 27 27 27 27 27 25 21 21 21 21 21 21 20 20 20 Protection 5 | . . . . 1 11 9 7 6 6 6 6 5 5 5 5 5 4 5 5 5 5 4 5 5 5 5 5 4 5 5 Energy Gun 5 | . 15 13 14 13 10 . . . . . . . . . . . 1 6 9 11 10 6 5 5 5 5 8 5 6 10 Energy Cannon 6 | . . . . . 10 15 12 13 12 13 13 11 7 11 11 8 7 3 . . 2 3 5 5 5 5 4 2 3 1 Ballistic Gun 2 | . 15 14 14 13 . 3 1 . . . . . . . . . . . 4 5 . . . . . . . . . . Ballistic Cannon 2 | . . . . . . . 7 5 5 6 4 3 3 2 5 4 3 3 . . 2 3 5 3 . . . 6 . 1 Slashing Weapon 1 | . . . . . . . . 1 . . 1 1 3 1 . 2 3 . . . . 1 . 1 5 4 1 . 1 1 Naked Turns . | . . . . . . . . . . . . . . . . . . . . . . . . . . . . . . . Heaviest Build 79 | 10 13 13 13 21 28 27 39 40 40 40 40 54 54 51 51 56 61 65 58 58 62 72 73 73 71 73 73 78 79 79 Greatest Support 160 | 40 40 40 40 40 56 56 76 80 80 80 80 87 87 87 87 87 101 101 160 160 160 160 160 160 160 160 160 160 100 100 Greatest Overweight (x) 1 | . . . . . . . . . . . . . . . . . . . . . . . . . . . . . . 1 Average Overweight (x) . | . . . . . . . . . . . . . . . . . . . . . . . . . . . . . . . Largest Inventory Capacity 8 | 2 3 3 3 4 6 7 7 7 7 7 7 7 7 7 7 7 7 7 7 7 7 7 7 7 7 7 7 7 8 8 Average Capacity 6 | 1 2 3 3 3 4 6 7 7 7 7 7 7 7 7 7 7 7 7 7 7 7 7 7 7 7 7 7 7 7 8 Most Carried 8 | 2 3 3 3 4 6 7 7 7 7 7 6 7 7 7 6 7 7 7 7 7 7 7 7 7 7 7 7 7 8 8 Average Carried 6 | 1 2 2 3 3 4 6 6 6 6 6 6 6 7 6 6 5 6 6 6 7 6 6 7 7 7 7 7 6 7 6 Final Capacity 8 | 2 3 3 3 4 6 7 7 7 7 7 7 7 7 7 7 7 7 7 7 7 7 7 7 7 7 7 7 7 8 8 Final Carried 7 | 2 3 3 3 4 6 7 7 6 6 6 6 7 7 6 6 7 7 7 7 7 7 7 7 7 7 7 7 7 7 7 Class Distribution -------------------- 24% | Hacker-Gunner 19% | Hacker-Skirmisher 19% | Hacker-Assassin 17% | Mutant 9% | Scavenger-Gunner Dominant Class ---------------- Mutant | -10/Materials Mutant | -10/Mines Mutant | -10/Exiles Mutant | -9/Mines Mutant | -8/Materials Hacker-Skirmisher | -8/Storage Hacker-Skirmisher | -7/Factory Hacker-Gunner | -7/Lower Caves Hacker-Gunner | -7/Lower Caves Hacker-Gunner | -7/Zion Hacker-Skirmisher | -6/Proximity Caves Hacker-Skirmisher | -6/Factory Hacker-Assassin | -6/Lower Caves Hacker-Skirmisher | -6/Lower Caves Hacker-Skirmisher | -6/Data Miner Hacker-Skirmisher | -5/Proximity Caves Hacker-Assassin | -5/Factory Hacker-Skirmisher | -5/Extension Scavenger-Gunner | -5/Cetus Scavenger-Gunner | -5/Archives Hacker-Gunner | -5/Hub_04(d) Scavenger-Gunner | -4/Factory Scavenger-Gunner | -4/Upper Caves Hacker-Gunner | -4/Upper Caves Hacker-Assassin | -4/Zhirov Hacker-Assassin | -3/Proximity Caves Hacker-Gunner | -3/Research Hacker-Gunner | -3/Testing Scavenger-Gunner | -2/Research Hacker-Gunner | -1/Access Resources | -11 -10 -10 -10 -9 -8 -8 -7 -7 -7 -7 -6 -6 -6 -6 -6 -5 -5 -5 -5 -5 -5 -4 -4 -4 -4 -3 -3 -3 -2 -1 ----------- Run | Scr Mat Min Exi Min Mat Sto Fac Low Low Zio Pro Fac Low Low Dat Pro Fac Ext Cet Arc Hub Fac Upp Upp Zhi Pro Res Tes Res Acc Matter Collected 10132 | 284 283 54 . 178 515 309 791 235 224 20 58 660 122 195 . 184 278 1081 269 138 813 603 111 103 . 140 133 1362 248 741 Remotely . | . . . . . . . . . . . . . . . . . . . . . . . . . . . . . . . Salvage Created 28267 | 103 672 126 28 164 3494 1258 1943 327 485 . 91 2619 176 381 . 198 660 3360 719 231 2794 1582 98 203 . 168 1020 2147 334 2886 Parts 1307 | 9 47 8 . 6 200 78 116 15 9 . 4 90 13 24 . 8 29 110 41 6 101 66 2 8 . 7 33 90 36 151 Haulers Intercepted 30 | . 2 . . . 5 6 3 . . . . 2 . . . . 1 1 . . 2 4 . . . . 1 1 . 2 Recyclers Shooed 12 | . 1 . . . 2 . . . . . . . . . . . . 1 . . 1 . . . . . . 1 . 6 Parts Field Recycled . | . . . . . . . . . . . . . . . . . . . . . . . . . . . . . . . Retrieved Matter . | . . . . . . . . . . . . . . . . . . . . . . . . . . . . . . . Parts Self-Destructed 58 | . . . . . . . . 10 6 . 1 . 3 17 . 8 . . . . . . 2 8 . 3 . . . . Prevented 34 | . . . . . . . . 5 6 . 2 . 4 7 . 6 . . . . . . . . . 4 . . . . Kills | -11 -10 -10 -10 -9 -8 -8 -7 -7 -7 -7 -6 -6 -6 -6 -6 -5 -5 -5 -5 -5 -5 -4 -4 -4 -4 -3 -3 -3 -2 -1 ------- Run | Scr Mat Min Exi Min Mat Sto Fac Low Low Zio Pro Fac Low Low Dat Pro Fac Ext Cet Arc Hub Fac Upp Upp Zhi Pro Res Tes Res Acc Combat Hostiles Destroyed 444 | . 15 4 . 11 63 21 30 9 6 . 5 37 4 13 . 3 11 42 12 2 40 17 1 4 . 3 12 28 7 44 Melee 1 | . . . . . . . . . . . . 1 . . . . . . . . . . . . . . . . . . Guns 159 | . 15 . . 11 28 . 3 . . . . . . . . . . 24 6 2 23 11 . 1 . . 4 12 3 16 Cannons 207 | . . . . . 17 14 27 9 4 . 3 27 4 10 . 3 10 16 . . 14 6 1 3 . . 7 12 3 17 AOE 56 | . . 4 . . 15 6 . . 2 . 2 8 . 3 . . 1 1 4 . 3 . . . . 3 . 2 . 2 Classes Destroyed 25 | 2 6 . . 2 5 . 1 1 . . . 2 1 . . . . 1 . . . . . . . . 2 2 . . Worker 26 | . 1 . . . 4 1 2 . . . . 6 . . . . 1 3 . . 5 1 . . . . . 1 . 1 Builder 18 | . . . . . 4 2 3 . . . . . . . . . . 3 . . . 1 . . . . . 2 1 2 Tunneler 7 | 2 . . . . 1 . 2 . . . . 1 . . . . . 1 . . . . . . . . . . . . Hauler 30 | . 2 . . . 5 6 3 . . . . 2 . . . . 1 1 . . 2 4 . . . . 1 1 . 2 Recycler 22 | 1 1 1 . . . . 6 . . . . 2 . . . . . 5 . . 1 2 . . . . 1 1 . 1 Carrier 1 | . . . . . . . . . . . . . . . . . . 1 . . . . . . . . . . . . Mechanic 3 | . . . . . 2 1 . . . . . . . . . . . . . . . . . . . . . . . . Operator 15 | . 2 . . . 4 3 1 . . . . . . . . . . 1 . . 1 1 . . . . . 1 1 . Watcher 31 | . 3 . . . 5 . 4 . . . . 4 . . . . 2 3 2 . 2 1 . . . . . 3 . 2 Swarmer 57 | . 6 3 . 3 15 4 6 4 . . . . . 9 . . . 1 1 . . . . 2 . 3 . . . . Saboteur 1 | . . . . . . . . . . . . 1 . . . . . . . . . . . . . . . . . . Grunt 208 | . 9 1 . . 31 13 15 3 5 . 4 22 . . . . 9 27 4 . 27 . . . . . 5 10 3 20 Brawler 15 | . . . . . 3 2 . . 1 . . 2 . . . . . 2 . . 1 . . . . . . . . 4 Duelist 15 | . . . . . 3 . 1 . . . . 7 . . . . . 2 . . 1 . . . . . . 1 . . Protector 4 | . . . . . . . . . . . . 1 . . . . . . . . 1 . . . . . . . . 2 Researcher 1 | . . . . . . . . . . . . . . . . . . . . . . . . . . . . 1 . . Sentry 35 | . . . . 1 9 1 3 1 . . 1 1 . 1 . 1 . 6 . 2 2 1 1 1 . . . . 1 2 Hunter 34 | . . . . . 2 1 3 . . . . 1 2 2 . 1 . . 1 . 2 5 . . . . 2 8 . 4 Programmer 51 | . . . . . . . 2 . . . . 2 . 1 . . 2 2 . . 6 11 . 1 . . 3 6 3 12 Behemoth 4 | . . . . . . . . 1 . . . . . . . 1 . 2 . . . . . . . . . . . . Cetus Guard 6 | . . . . . . . . . . . . . . . . . . . 6 . . . . . . . . . . . Striker 3 | . . . . . . . . . . . . . . . . . . . . . . . . . . . 1 2 . . Executioner 1 | . . . . . . . . . . . . . . . . . . . . . . . . . . . 1 . . . Alpha 7 1 | . . . . . . . . . . . . . . . . . . . . . . . . . . . . 1 . . Thief 2 | . . . . . . . . . . . . . 2 . . . . . . . . . . . . . . . . . Assembled 7 | . . . . 7 . . . . . . . . . . . . . . . . . . . . . . . . . . Thug 2 | . . . . . . . 1 . . . . . . . . . . 1 . . . . . . . . . . . . Best Kill Streak 10 | 2 3 4 . 3 10 7 10 5 4 . 3 5 2 4 . 1 3 8 5 2 10 4 2 2 . 3 5 6 3 10 Combat Bots Only 9 | . 3 4 . 3 9 6 8 5 4 . 3 5 2 4 . 1 3 7 5 2 6 3 1 2 . 3 5 5 3 9 Max Kills in Single Turn 3 | 1 2 2 . 1 3 3 3 1 3 . 2 3 1 2 . 1 1 2 2 1 3 2 1 1 . 1 2 2 1 3 Gunslinging 1 | . 1 . . . . . . . . . . . . . . . . . 1 . . . . . . . . . . . Exploded 3 | . . 2 . . 2 2 . . 2 . 2 2 . 2 . . 1 1 2 . 3 . . . . 1 . 2 . 1 Melee 1 | . . . . . . . . . . . . 1 . . . . . . . . . . . . . . . . . . Uniques/NPCs Destroyed . | . . . . . . . . . . . . . . . . . . . . . . . . . . . . . . . Combat | -11 -10 -10 -10 -9 -8 -8 -7 -7 -7 -7 -6 -6 -6 -6 -6 -5 -5 -5 -5 -5 -5 -4 -4 -4 -4 -3 -3 -3 -2 -1 -------- Run | Scr Mat Min Exi Min Mat Sto Fac Low Low Zio Pro Fac Low Low Dat Pro Fac Ext Cet Arc Hub Fac Upp Upp Zhi Pro Res Tes Res Acc Damage Taken 26393 | . 567 340 . 546 2542 357 1066 640 135 . 251 1627 249 711 . 243 551 3140 643 67 1854 1026 . 166 . 156 1325 3019 482 4690 Core 19049 | . 456 282 . 443 1779 245 768 446 114 . 182 1161 190 525 . 150 395 2285 479 50 1365 749 . 112 . 107 950 2116 350 3350 Absorbed by Shields 2409 | . . . . . . . . . . . . . . . . . . 28 205 24 519 82 . 65 . 58 474 204 121 629 Reduced by Siege Mode 85 | . . . . . . . . . . . . . . . . . . . . . . 1 . . . . 23 30 7 24 Redirected to Core 16682 | . 360 210 . 340 1473 213 612 413 72 . 159 1082 154 452 . 150 395 1993 425 35 1225 659 . 112 . 92 829 1913 299 3015 Core Remaining (%) 75 | 100 . . . 61 . 100 . . . . 100 . . . . 51 . . . . 92 . . . . 79 . 40 59 70 Volleys Fired 1276 | 8 71 4 5 37 197 46 68 23 7 . 9 75 7 17 . 14 25 131 28 10 101 54 2 9 . 6 39 114 26 143 Largest 3 | 2 2 2 1 2 2 2 3 3 3 . 3 3 3 3 . 3 3 3 3 3 3 3 3 3 . 3 3 3 3 3 Hottest 282 | 60 65 65 45 79 144 144 192 187 187 . 182 207 207 207 . 207 219 276 240 197 265 241 245 245 . 220 265 265 208 282 Shots Fired 3088 | 16 142 8 5 73 393 85 188 66 21 . 21 208 18 51 . 33 69 341 75 13 286 137 6 23 . 18 118 248 58 368 Gun 1486 | 16 142 6 5 73 195 11 13 . . . . . . . . . 4 158 66 13 195 67 2 7 . 6 78 108 38 283 Cannon 1515 | . . . . . 181 71 175 66 17 . 19 196 18 44 . 33 65 180 . . 88 70 4 16 . 6 40 138 20 68 Launcher 87 | . . 2 . . 17 3 . . 4 . 2 12 . 7 . . . 3 9 . 3 . . . . 6 . 2 . 17 Special . | . . . . . . . . . . . . . . . . . . . . . . . . . . . . . . . Kinetic 767 | 8 71 4 . 36 . 11 86 20 7 . 3 65 4 10 . 14 21 120 19 10 63 45 2 9 . . . 108 2 29 Thermal 1461 | . . . . 1 180 25 59 23 7 . 9 67 7 17 . 5 26 218 47 3 220 92 4 14 . 12 118 106 24 177 Explosive 3 | . . 2 . . . . . . . . . . . 1 . . . . . . . . . . . . . . . . Electromagnetic 857 | 8 71 2 5 36 213 49 43 23 7 . 9 76 7 23 . 14 22 3 9 . 3 . . . . 6 . 34 32 162 Robot Hit Streak 53 | 6 8 6 3 9 24 24 36 14 22 . 29 49 14 40 . 16 18 24 20 27 28 28 12 5 . . 33 30 24 53 Robot Miss Streak 6 | 2 6 1 1 4 2 4 1 1 . . 1 2 1 1 . 1 1 3 4 1 2 2 1 2 . . 2 2 1 2 Penetration Max 1 | . . . . . . . . . . . . 1 . . . . . 1 . . 1 . . . . . . 1 . 1 Secondary Targets 11 | . 4 . . . . . . . . . . . . . . . . 2 1 . 2 . . . . . . . . 2 Max Gunslinging Chain 1 | . 1 . . . . . . . . . . . . . . . . 1 1 . 1 . . . . . . . . 1 Shots Hit Robots 2327 | 11 75 4 4 45 292 58 137 46 15 . 18 175 14 31 . 27 56 257 54 12 217 100 4 13 . . 99 190 54 319 Core Hits 1107 | 4 29 6 2 23 133 37 72 14 10 . 10 101 7 17 . 9 27 103 36 4 111 44 2 5 . 6 33 86 20 156 Critical Hits 177 | . . . . 1 2 1 2 . . . 1 7 1 1 . 4 . 45 9 1 42 14 . 2 . . 6 22 3 13 Critical Kills 55 | . . . . . 1 . . . . . . 4 1 . . 1 . 13 3 1 11 4 . 2 . . 1 6 3 4 Critical Parts Destroyed 97 | . . . . 1 1 1 2 . . . 1 3 . 1 . 3 . 20 4 . 28 9 . . . . 3 11 . 9 Melee Attacks 199 | . . . . . 11 6 29 4 3 . 6 8 10 5 . 3 23 . . . 6 22 . 6 . 9 3 15 7 23 Impact . | . . . . . . . . . . . . . . . . . . . . . . . . . . . . . . . Slashing 179 | . . . . . . . 26 4 3 . 6 8 10 5 . 3 23 . . . 6 22 . 6 . 9 3 15 7 23 Piercing 20 | . . . . . 11 6 3 . . . . . . . . . . . . . . . . . . . . . . . Sneak Attacks 14 | . . . . . . . 7 . . . . 3 . . . . . . . . . 3 . . . . . . 1 . Combat Hostiles . | . . . . . . . . . . . . . . . . . . . . . . . . . . . . . . . Follow-up Attacks . | . . . . . . . . . . . . . . . . . . . . . . . . . . . . . . . Damage Inflicted 79257 | 177 1493 403 56 617 6903 2232 4774 1324 716 . 826 7789 372 1179 . 642 1988 8692 2474 337 8417 4230 166 491 . 222 4114 6870 1650 10103 Guns 27560 | 150 1153 46 56 617 1845 64 152 . . . . . . . . . 52 3662 1212 337 4999 1955 37 144 . . 2416 2304 699 5660 Cannons 35389 | . . . . . 2971 1578 3393 1324 311 . 398 4891 372 755 . 642 1539 4593 . . 2328 1679 129 347 . . 1681 3541 641 2276 Explosions 13269 | 27 339 357 . . 2004 576 263 . 405 . 378 2323 . 424 . . 206 422 1262 . 1073 . . . . 222 . 928 . 2060 Melee 2868 | . . . . . 61 . 951 . . . 50 554 . . . . 181 . . . . 571 . . . . . 83 310 107 Ramming 171 | . 1 . . . 22 14 15 . . . . 21 . . . . 10 15 . . 17 25 . . . . 17 14 . . Kinetic 13803 | 58 418 13 . 261 . 64 1317 391 88 . 25 1375 53 129 . 269 465 2364 321 254 1401 851 42 201 . . . 2494 97 852 Thermal 41840 | 27 154 . . 15 3495 436 1150 442 141 . 362 3136 156 283 . 124 815 5891 1334 83 5964 2783 124 290 . . 4097 3535 695 6308 Explosive 793 | . 185 357 . . . . . . . . . . . 251 . . . . . . . . . . . . . . . . Electromagnetic 19782 | 92 735 33 56 341 3325 1718 1341 491 487 . 389 2703 163 516 . 249 517 422 819 . 1035 . . . . 222 . 744 548 2836 Impact . | . . . . . . . . . . . . . . . . . . . . . . . . . . . . . . . Slashing 2704 | . . . . . . . 848 . . . 50 554 . . . . 181 . . . . 571 . . . . . 83 310 107 Piercing 164 | . . . . . 61 . 103 . . . . . . . . . . . . . . . . . . . . . . . Highest Corruption 14 | . . . . . 2 5 3 3 3 3 . 1 1 2 2 2 5 6 6 6 12 8 4 1 . . 5 9 . 14 Average Corruption 3 | . . . . . 1 3 2 3 3 3 . 1 1 1 2 2 3 5 6 6 8 5 1 1 . . 4 5 . 9 Corruption Purged 36 | . . . . . . . . . . . . . . . . . . . . . . 7 3 1 . . . 17 . 8 Effects 533 | . . . . . 12 27 25 19 16 1 . 8 2 11 1 9 23 69 23 4 84 47 8 1 . . 5 61 . 77 Message Errors 119 | . . . . . 4 7 9 6 2 1 . 4 1 3 . 4 5 17 7 2 14 7 4 . . . 1 11 . 10 Matter Fused 81 | . . . . . . 7 2 3 6 . . . . . . . 4 10 2 1 11 9 1 . . . . 15 . 10 Heat Flow Errors 43 | . . . . . . 3 4 3 2 . . . . 3 . 2 5 4 1 . 6 2 . . . . . 4 . 4 Energy Discharges 60 | . . . . . 1 3 4 3 2 . . 1 . 1 1 2 5 8 1 . 4 6 3 . . . 1 6 . 8 Parts Rejected 3 | . . . . . . . . . . . . . . . . . . 2 . . 1 . . . . . . . . . Data Loss (minor) 49 | . . . . . 3 5 4 1 3 . . 1 1 4 . . 1 3 2 . 3 6 . 1 . . 1 5 . 5 Data Loss (major) 16 | . . . . . . . . . . . . . . . . . 2 5 1 . 1 4 . . . . . 2 . 1 Misfires 13 | . . . . . . 1 . . . . . . . . . . 1 1 2 1 2 1 . . . . 1 1 . 2 Alerts 1 | . . . . . . . . . . . . . . . . . . . . . . . . . . . . . . 1 Misdirections 2 | . . . . . . . . . . . . . . . . . . . . . 1 . . . . . . . . 1 Targeting Errors 128 | . . . . . 3 1 2 3 1 . . 2 . . . 1 . 17 6 . 35 9 . . . . 1 15 . 32 Weapon Failures 18 | . . . . . 1 . . . . . . . . . . . . 2 1 . 6 3 . . . . . 2 . 3 Overload Shots 14 | . . . . . . . . . . . . . . . . . . 4 4 . . . . . . . . 6 . . Effects 1 | . . . . . . . . . . . . . . . . . . 1 . . . . . . . . . . . . Heat Surge 1 | . . . . . . . . . . . . . . . . . . 1 . . . . . . . . . . . . Overflow Damage 2484 | . 5 2 . . 167 65 479 . . . 3 461 . 30 . . 59 206 47 . 165 229 . . . 20 155 255 . 136 Projectiles 1261 | . . . . . 106 50 135 . . . . 153 . 25 . . 35 145 . . 102 112 . . . . 155 195 . 48 Explosions 635 | . 5 2 . . 61 15 19 . . . 3 181 . 5 . . 5 61 47 . 63 . . . . 20 . 60 . 88 Melee 588 | . . . . . . . 325 . . . . 127 . . . . 19 . . . . 117 . . . . . . . . Knockbacks 95 | . . . . . . . 5 . . . . 13 1 . . . 6 8 . . 22 10 . 1 . . . 21 2 6 Impact 3 | . . . . . . . . . . . . . . . . . 2 1 . . . . . . . . . . . . Kinetic 85 | . . . . . . . 4 . . . . 11 1 . . . 4 7 . . 18 10 . 1 . . . 21 2 6 Secondary 7 | . . . . . . . 1 . . . . 2 . . . . . . . . 4 . . . . . . . . . Self-Inflicted Damage 663 | . . . . . 104 . 16 . . . . 59 . . . . . . . . 170 33 . . . . . 251 . 30 Shots 16 | . . . . . 4 . 1 . . . . 3 . . . . . . . . 2 1 . . . . . 3 . 2 Rammed 24 | . 1 . . . 3 3 3 . . . . 1 . . . . 2 2 . . 2 1 . . . . 4 2 . . Targets Rammed 27 | . 1 . . . 4 3 3 . . . . 1 . . . . 2 3 . . 3 1 . . . . 4 2 . . Kicked . | . . . . . . . . . . . . . . . . . . . . . . . . . . . . . . . Crushed 3 | . . . . . 1 . . . . . . . . . . . . 1 . . 1 . . . . . . . . . Highest Temperature 606 | . 144 12 30 105 273 205 323 336 62 . 8 304 60 230 . 122 225 510 296 33 361 184 . 5 . . 54 456 162 606 Average Temperature 77 | . 24 6 16 19 52 54 104 138 25 . 8 36 25 59 . 23 60 161 70 23 92 19 . 4 . . 21 109 63 104 Received Heat Transfer 5601 | . 258 9 . 150 1161 180 378 108 90 . 108 582 . 66 . 9 222 811 78 . 513 . . 6 . . 51 179 78 564 Effects 31 | . . . . . 1 . . . . . . . . . . . . 20 . . 7 . . . . . . . . 3 Shutdowns 14 | . . . . . . . . . . . . . . . . . . 10 . . 2 . . . . . . . . 2 Energy Bleed 4 | . . . . . 1 . . . . . . . . . . . . 3 . . . . . . . . . . . . Interference 5 | . . . . . . . . . . . . . . . . . . 1 . . 4 . . . . . . . . . Matter Decay 4 | . . . . . . . . . . . . . . . . . . 3 . . . . . . . . . . . 1 Short Circuit 1 | . . . . . . . . . . . . . . . . . . 1 . . . . . . . . . . . . Damage (minor) 3 | . . . . . . . . . . . . . . . . . . 2 . . 1 . . . . . . . . . Siege Activations 23 | . . . . . . . . . . . . . . . . . . . . . . 4 . . . . 3 7 3 6 Total Turns 442 | . . . . . . . . . . . . . . . . . . . . . . 25 . . . . 110 92 100 115 Longest Duration 90 | . . . . . . . . . . . . . . . . . . . . . . 9 . . . . 90 19 54 31 Robots Corrupted 23 | . . . . . 3 1 . . . . . 1 . . . . . 1 2 . 2 . . . . . . 3 1 9 Combat Hostiles 18 | . . . . . 3 1 . . . . . 1 . . . . . . 2 . . . . . . . . 2 1 8 Parts Fried 96 | . 3 . . . 11 8 5 3 2 . 4 11 1 2 . . 2 2 4 . 4 . . . . . . 11 7 16 Impact Corruptions 1 | . . . . . . . . . . . . . . . . . . 1 . . . . . . . . . . . . Robots Melted 3 | . . . . . . . . . . . . . . . . . . 1 . . . . . . . . 1 . . 1 Combat Hostiles 3 | . . . . . . . . . . . . . . . . . . 1 . . . . . . . . 1 . . 1 Parts Melted 64 | . . . . . 2 . . . . . 1 1 . . . . . 8 1 . 11 4 . 1 . . 12 5 1 17 Heat Transferred 42470 | 50 200 . . 37 4929 670 1493 555 185 . 446 3142 185 333 . 111 474 5907 1471 111 6163 2571 87 223 . . 3246 3171 666 6044 Parts Sabotaged 3 | . . . . . . . . . . . . . . . . . . . . . . . . . . . . 3 . . Parts Stolen 1 | . . . . . . . . . . . . . 1 . . . . . . . . . . . . . . . . . Parts Stripped . | . . . . . . . . . . . . . . . . . . . . . . . . . . . . . . . Power Chain Reactions 46 | 1 3 . . . 10 4 1 . . . 1 5 . . . . 2 . 5 . 3 . . . . . . 3 . 8 Missiles Intercepted . | . . . . . . . . . . . . . . . . . . . . . . . . . . . . . . . Alert | -11 -10 -10 -10 -9 -8 -8 -7 -7 -7 -7 -6 -6 -6 -6 -6 -5 -5 -5 -5 -5 -5 -4 -4 -4 -4 -3 -3 -3 -2 -1 ------- Run | Scr Mat Min Exi Min Mat Sto Fac Low Low Zio Pro Fac Low Low Dat Pro Fac Ext Cet Arc Hub Fac Upp Upp Zhi Pro Res Tes Res Acc Peak Influence 1661 | 15 187 153 . 169 1000 845 664 . . . . 959 . . . . 371 829 1022 500 1570 940 . . . . 224 719 422 1661 Average Influence 373 | 5 59 21 . 63 399 533 394 . . . . 364 . . . . 125 252 727 488 641 695 . . . . 87 393 195 865 Maximum Alert Level 5 | . . . . . 3 3 2 . . . . 3 . . . . 1 3 3 2 4 3 . . . . 1 3 2 5 Low Security (%) 38 | 100 100 100 . 100 29 6 1 . . . . 51 . . . . 72 47 . . . . . . . . 90 15 47 3 Level 1 21 | . . . . . 34 24 59 . . . . 2 . . . . 27 29 . . 36 4 . . . . 9 34 41 10 Level 2 21 | . . . . . 15 38 39 . . . . 20 . . . . . 17 43 100 21 42 . . . . . 46 10 17 Level 3 16 | . . . . . 20 31 . . . . . 26 . . . . . 5 56 . 31 53 . . . . . 3 . 39 Level 4 1 | . . . . . . . . . . . . . . . . . . . . . 9 . . . . . . . . 22 Level 5 . | . . . . . . . . . . . . . . . . . . . . . . . . . . . . . . 6 High Security . | . . . . . . . . . . . . . . . . . . . . . . . . . . . . . . . Max Security . | . . . . . . . . . . . . . . . . . . . . . . . . . . . . . . . Squads Dispatched 107 | . 4 . . 1 13 10 11 . . . . 9 . . . . 7 9 . . 9 7 . . . . 5 8 2 12 Investigation 26 | . 3 . . . 2 6 3 . . . . 1 . . . . 2 3 . . 1 . . . . . 2 1 . 2 Extermination 20 | . . . . . . . 2 . . . . 3 . . . . 2 . . . 2 4 . . . . . 3 1 3 Reinforcement 33 | . 1 . . . 5 3 6 . . . . 1 . . . . 1 4 . . 3 1 . . . . 3 3 1 1 Assault 22 | . . . . 1 2 1 . . . . . 4 . . . . 1 2 . . 3 2 . . . . . 1 . 5 Garrison 6 | . . . . . 4 . . . . . . . . . . . 1 . . . . . . . . . . . . 1 Intercept . | . . . . . . . . . . . . . . . . . . . . . . . . . . . . . . . Construction Impeded 13 | . . . . . 1 . 2 . . . . 1 . . . . 1 3 . . 2 . . . . . 1 1 . 1 Haulers Reinforced 3 | . . . . . . . 2 . . . . . . . . . . . . . 1 . . . . . . . . . Stealth | -11 -10 -10 -10 -9 -8 -8 -7 -7 -7 -7 -6 -6 -6 -6 -6 -5 -5 -5 -5 -5 -5 -4 -4 -4 -4 -3 -3 -3 -2 -1 --------- Run | Scr Mat Min Exi Min Mat Sto Fac Low Low Zio Pro Fac Low Low Dat Pro Fac Ext Cet Arc Hub Fac Upp Upp Zhi Pro Res Tes Res Acc Distress Signals 28 | . 1 . . . 6 1 4 . . . . 1 . . . . 1 4 1 . 2 . . . . . 4 1 . 2 Communications Jammed . | . . . . . . . . . . . . . . . . . . . . . . . . . . . . . . . Distress Signals . | . . . . . . . . . . . . . . . . . . . . . . . . . . . . . . . Times Spotted 777 | . 30 5 . 24 115 52 49 9 6 . 6 59 5 14 . 5 19 88 26 9 60 25 1 4 . 5 30 40 16 75 Peak Tracking Total 8 | . 4 5 . 4 7 8 7 5 4 . 4 6 3 4 . 2 4 7 5 1 8 4 1 2 . 3 8 5 4 6 Tactical Retreats 62 | . 4 . . 1 18 . 3 . . . 2 10 . 1 . . 2 11 2 . 4 . . . . 1 . 1 1 1 Traps | -11 -10 -10 -10 -9 -8 -8 -7 -7 -7 -7 -6 -6 -6 -6 -6 -5 -5 -5 -5 -5 -5 -4 -4 -4 -4 -3 -3 -3 -2 -1 ------- Run | Scr Mat Min Exi Min Mat Sto Fac Low Low Zio Pro Fac Low Low Dat Pro Fac Ext Cet Arc Hub Fac Upp Upp Zhi Pro Res Tes Res Acc Traps Triggered 17 | . 2 . . . 2 3 3 . . . . . . . . . . . . . 1 1 . . . . . 3 1 1 Indirectly 4 | . . . . . 2 1 . . . . . . . . . . . . . . . . . . . . . . . 1 Trap Hack Attempts . | . . . . . . . . . . . . . . . . . . . . . . . . . . . . . . . Triggered . | . . . . . . . . . . . . . . . . . . . . . . . . . . . . . . . Disarmed . | . . . . . . . . . . . . . . . . . . . . . . . . . . . . . . . Reprogrammed 6 | . . . . . . . 6 . . . . . . . . . . . . . . . . . . . . . . . Reused 1 | . . . . . . . 1 . . . . . . . . . . . . . . . . . . . . . . . Traps Extracted . | . . . . . . . . . . . . . . . . . . . . . . . . . . . . . . . Installed . | . . . . . . . . . . . . . . . . . . . . . . . . . . . . . . . Triggered 8 | . 1 . . . 4 1 2 . . . . . . . . . . . . . . . . . . . . . . . Machines | -11 -10 -10 -10 -9 -8 -8 -7 -7 -7 -7 -6 -6 -6 -6 -6 -5 -5 -5 -5 -5 -5 -4 -4 -4 -4 -3 -3 -3 -2 -1 ---------- Run | Scr Mat Min Exi Min Mat Sto Fac Low Low Zio Pro Fac Low Low Dat Pro Fac Ext Cet Arc Hub Fac Upp Upp Zhi Pro Res Tes Res Acc Machines Disabled 84 | . 3 . . 1 7 1 7 . . . . 14 . . . . 7 4 3 . 14 7 . . . . 1 13 . 2 Max in Single Turn 9 | . 2 . . 1 1 1 2 . . . . 9 . . . . 2 1 1 . 4 4 . . . . 1 3 . 1 Garrison Access 8 | . . . . . 1 1 1 . . . . . . . . . 1 . . . 1 1 . . . . . . . 2 Network Hub 1 | . . . . . . . . . . . . . . . . . . . . . 1 . . . . . . . . . Energy Cycler 2 | . . . . . . . . . . . . . . . . . . 2 . . . . . . . . . . . . Machines Sabotaged . | . . . . . . . . . . . . . . . . . . . . . . . . . . . . . . . Garrisons Compromised . | . . . . . . . . . . . . . . . . . . . . . . . . . . . . . . . Overloaded Fab Kills . | . . . . . . . . . . . . . . . . . . . . . . . . . . . . . . . Fab Network Shutdowns 1 | . . . . . . . . . . . . . . . . . . . . . . 1 . . . . . . . . Hacking | -11 -10 -10 -10 -9 -8 -8 -7 -7 -7 -7 -6 -6 -6 -6 -6 -5 -5 -5 -5 -5 -5 -4 -4 -4 -4 -3 -3 -3 -2 -1 --------- Run | Scr Mat Min Exi Min Mat Sto Fac Low Low Zio Pro Fac Low Low Dat Pro Fac Ext Cet Arc Hub Fac Upp Upp Zhi Pro Res Tes Res Acc Machines Accessed 107 | . 6 . 1 . 8 14 10 . . . . 7 . . 2 . 7 12 4 1 3 8 1 . 6 . 3 8 1 5 Terminals 73 | . 5 . . . 6 14 7 . . . . 5 . . . . 2 10 4 . 2 5 . . . . 2 7 1 3 Fabricators 6 | . . . . . . . 1 . . . . . . . . . 3 . . . . 2 . . . . . . . . Repair Stations 4 | . 1 . . . . . . . . . . 1 . . . . . 1 . . . . . . . . . 1 . . Recycling Units 2 | . . . . . . . . . . . . 1 . . . . . 1 . . . . . . . . . . . . Scanalyzers 3 | . . . . . 1 . 1 . . . . . . . . . 1 . . . . . . . . . . . . . Garrison Access 8 | . . . . . 1 . 1 . . . . . . . . . 1 . . . 1 1 . . . . 1 . . 2 Total Hacks 379 | . 22 . 4 . 32 54 47 . . . . 17 . . 15 . 18 41 7 1 7 38 1 . 19 . 8 23 6 19 Successful 233 | . 13 . 4 . 18 24 29 . . . . 13 . . 15 . 14 21 2 1 2 25 1 . 19 . 7 11 6 8 Failed 144 | . 8 . . . 14 30 18 . . . . 4 . . . . 4 19 5 . 5 13 . . . . 1 12 . 11 Catastrophic 24 | . 1 . . . 1 7 3 . . . . 1 . . . . 2 2 . . 1 1 . . . . . 3 . 2 Database Lockouts 5 | . 1 . . . . . . . . . . . . . . . . 4 . . . . . . . . . . . . Manual 202 | . 10 . . . 15 37 27 . . 1 . 8 . . . . 9 32 5 . 5 25 . . . . 4 6 5 13 Terminals 267 | . 18 . . . 20 54 38 . . . . 13 . . . . 4 37 7 . 5 27 . . . . 6 21 6 11 Fabricators 22 | . . . . . . . 2 . . . . . . . . . 10 . . . . 10 . . . . . . . . Repair Stations 10 | . 4 . . . . . . . . . . 2 . . . . . 2 . . . . . . . . . 2 . . Recycling Units 4 | . . . . . . . . . . . . 2 . . . . . 2 . . . . . . . . . . . . Scanalyzers 18 | . . . . . 11 . 4 . . . . . . . . . 3 . . . . . . . . . . . . . Garrison Access 18 | . . . . . 1 . 3 . . . . . . . . . 1 . . . 2 1 . . . . 2 . . 8 Terminal Hacks 153 | . 9 . 4 . 5 22 18 . . . . 9 . . 15 . 2 12 2 1 1 13 1 . 19 . 4 6 5 5 Record 20 | . 1 . 4 . . . 1 . . . . 2 . . . . . 1 1 1 . 1 . . 7 . . 1 . . Part Schematic 12 | . . . . . . 1 . . . . . . . . 6 . . . . . . . . . 4 . . 1 . . Robot Schematic 6 | . . . . . . . . . . . . . . . 6 . . . . . . . . . . . . . . . Robot Analysis 15 | . 2 . . . . 2 2 . . . . 1 . . . . . 2 . . . 1 . . 4 . 1 . . . Prototype ID Bank 20 | . 3 . . . . 3 2 . . . . 2 . . 3 . . . . . . 1 . . 4 . 1 1 . . Open Door 9 | . . . . . . 4 . . . . . . . . . . . 1 1 . . . 1 . . . . 1 . 1 Level Access Points 2 | . . . . . . 1 . . . . . . . . . . . . . . . . . . . . . . 1 . Branch Access Points 5 | . 1 . . . . . 1 . . . . 1 . . . . . . . . . 1 . . . . 1 . . . Terminal Index 2 | . . . . . . . 1 . . . . 1 . . . . . . . . . . . . . . . . . . Garrison Index 1 | . . . . . . . 1 . . . . . . . . . . . . . . . . . . . . . . . Alert Level 16 | . . . . . . 4 3 . . . . 1 . . . . . 2 . . 1 2 . . . . . 1 1 1 Unreport Threat 26 | . 1 . . . 3 5 2 . . . . . . . . . 2 3 . . . 5 . . . . . . 2 3 Locate Traps 12 | . 1 . . . 2 2 2 . . . . 1 . . . . . 1 . . . 1 . . . . 1 . 1 . Reprogram Traps 1 | . . . . . . . 1 . . . . . . . . . . . . . . . . . . . . . . . Recall Investigation 2 | . . . . . . . . . . . . . . . . . . 2 . . . . . . . . . . . . Recall Reinforcements 2 | . . . . . . . 1 . . . . . . . . . . . . . . . . . . . . 1 . . Recall Assault 1 | . . . . . . . . . . . . . . . . . . . . . . 1 . . . . . . . . Registered Prototypes 1 | . . . . . . . 1 . . . . . . . . . . . . . . . . . . . . . . . Fabricator Hacks 8 | . . . . . . . . . . . . . . . . . 4 . . . . 4 . . . . . . . . Load Schematic 4 | . . . . . . . . . . . . . . . . . 2 . . . . 2 . . . . . . . . Build 4 | . . . . . . . . . . . . . . . . . 2 . . . . 2 . . . . . . . . Repair Station Hacks 9 | . 4 . . . . . . . . . . 2 . . . . . 1 . . . . . . . . . 2 . . Scan Component 5 | . 2 . . . . . . . . . . 1 . . . . . 1 . . . . . . . . . 1 . . Repair 4 | . 2 . . . . . . . . . . 1 . . . . . . . . . . . . . . . 1 . . Recycling Unit Hacks 3 | . . . . . . . . . . . . 1 . . . . . 2 . . . . . . . . . . . . Report Inventory 1 | . . . . . . . . . . . . . . . . . . 1 . . . . . . . . . . . . Retrieve Matter 1 | . . . . . . . . . . . . . . . . . . 1 . . . . . . . . . . . . Retrieve Components 1 | . . . . . . . . . . . . 1 . . . . . . . . . . . . . . . . . . Scanalyzer 17 | . . . . . 11 . 4 . . . . . . . . . 2 . . . . . . . . . . . . . Insert Component 8 | . . . . . 5 . 2 . . . . . . . . . 1 . . . . . . . . . . . . . Analyze 9 | . . . . . 6 . 2 . . . . . . . . . 1 . . . . . . . . . . . . . Garrison Access Hacks 4 | . . . . . 1 . 1 . . . . . . . . . . . . . . 1 . . . . . . . 1 Seal Access 4 | . . . . . 1 . 1 . . . . . . . . . . . . . . 1 . . . . . . . 1 Unauthorized Hacks 94 | . . . . . 8 4 12 . . . . 2 . . . . 12 14 . . 3 16 . . . . 7 7 2 7 Terminals 25 | . . . . . 1 2 6 . . . . 1 . . . . . 6 . . . 3 . . . . 1 3 1 1 Track 7 | . . . . . 1 1 2 . . . . . . . . . . . . . . 1 . . . . . 1 . 1 Assimilate 1 | . . . . . . . 1 . . . . . . . . . . . . . . . . . . . . . . . Botnet 11 | . . . . . . . 2 . . . . . . . . . . 5 . . . 1 . . . . 1 1 1 . Operators 6 | . . . . . . 1 1 . . . . 1 . . . . . 1 . . . 1 . . . . . 1 . . Fabricators 8 | . . . . . . . . . . . . . . . . . 4 . . . . 4 . . . . . . . . Prioritize 4 | . . . . . . . . . . . . . . . . . 2 . . . . 2 . . . . . . . . Siphon 4 | . . . . . . . . . . . . . . . . . 2 . . . . 2 . . . . . . . . Repair Stations . | . . . . . . . . . . . . . . . . . . . . . . . . . . . . . . . Recycling Units . | . . . . . . . . . . . . . . . . . . . . . . . . . . . . . . . Scanalyzers 1 | . . . . . . . . . . . . . . . . . 1 . . . . . . . . . . . . . Extract 1 | . . . . . . . . . . . . . . . . . 1 . . . . . . . . . . . . . Garrison Access 5 | . . . . . . . . . . . . . . . . . 1 . . . 1 . . . . . 2 . . 1 Reprogram 4 | . . . . . . . . . . . . . . . . . 1 . . . 1 . . . . . 1 . . 1 Watchers 1 | . . . . . . . . . . . . . . . . . . . . . . . . . . . 1 . . . Data Cores Recovered 2 | . . . . . . 1 . . . . . . . . . . . . . . . 1 . . . . . . . . Used 1 | . . . . . . . . . . . . . . . . . . . . . . 1 . . . . . . . . Hacking Detections 84 | . 5 . . . 7 14 9 . . . . 7 . . . . 4 12 3 . 3 6 . . . . 2 7 1 4 Full Trace Events 19 | . 1 . . . 4 5 3 . . . . 1 . . . . 1 2 . . . . . . . . . 1 . 1 Feedback Events 4 | . . . . . 1 2 . . . . . . . . . . 1 . . . . . . . . . . . . . Corruption 4 | . . . . . 1 2 . . . . . . . . . . 1 . . . . . . . . . . . . . Feedback Blocked . | . . . . . . . . . . . . . . . . . . . . . . . . . . . . . . . Robot Schematics Acquired 6 | . . . . . . . . . . . . . . . 6 . . . . . . . . . . . . . . . Robots Built 3 | . . . . . . . . . . . . . . . . . . . . . . 3 . . . . . . . . Matter 189 | . . . . . . . . . . . . . . . . . . . . . . 189 . . . . . . . . Time 67 | . . . . . . . . . . . . . . . . . . . . . . 67 . . . . . . . . Total Robot Build Rating 12 | . . . . . . . . . . . . . . . . . . . . . . 12 . . . . . . . . Part Schematics Acquired 29 | . . . . . 5 1 2 . . . . . . . 6 . 10 . . . . . . . 4 . . 1 . . Parts Built 1 | . . . . . . . . . . . . . . . . . 1 . . . . . . . . . . . . . Matter 381 | . . . . . . . . . . . . . . . . . 381 . . . . . . . . . . . . . Time 122 | . . . . . . . . . . . . . . . . . 122 . . . . . . . . . . . . . Total Part Build Rating 5 | . . . . . . . . . . . . . . . . . 5 . . . . . . . . . . . . . Parts Repaired 4 | . 2 . . . . . . . . . . 1 . . . . . . . . . . . . . . . 1 . . Time 148 | . 58 . . . . . . . . . . 28 . . . . . . . . . . . . . . . 62 . . Parts Recycled . | . . . . . . . . . . . . . . . . . . . . . . . . . . . . . . . Recycled Matter . | . . . . . . . . . . . . . . . . . . . . . . . . . . . . . . . Retrieved Matter . | . . . . . . . . . . . . . . . . . . . . . . . . . . . . . . . Retrieved Components 3 | . . . . . . . . . . . . 3 . . . . . . . . . . . . . . . . . . Parts Scanalyzed 8 | . . . . . 5 . 2 . . . . . . . . . 1 . . . . . . . . . . . . . Part Schematics Acquired 8 | . . . . . 5 . 2 . . . . . . . . . 1 . . . . . . . . . . . . . Parts Damaged 1 | . . . . . . . . . . . . . . . . . 1 . . . . . . . . . . . . . Bothacking | -11 -10 -10 -10 -9 -8 -8 -7 -7 -7 -7 -6 -6 -6 -6 -6 -5 -5 -5 -5 -5 -5 -4 -4 -4 -4 -3 -3 -3 -2 -1 ------------ Run | Scr Mat Min Exi Min Mat Sto Fac Low Low Zio Pro Fac Low Low Dat Pro Fac Ext Cet Arc Hub Fac Upp Upp Zhi Pro Res Tes Res Acc Used RIF Installer . | . . . . . . . . . . . . . . . . . . . . . . . . . . . . . . . Robots Hacked . | . . . . . . . . . . . . . . . . . . . . . . . . . . . . . . . Non-combat . | . . . . . . . . . . . . . . . . . . . . . . . . . . . . . . . Combat . | . . . . . . . . . . . . . . . . . . . . . . . . . . . . . . . Robot Hacks Applied . | . . . . . . . . . . . . . . . . . . . . . . . . . . . . . . . Relay Couplers Released 4 | . . . . . . . . . . . . . . . . . 1 . . . 1 . . . . . 2 . . . Machine Destruction 2 | . . . . . . . . . . . . . . . . . 1 . . . 1 . . . . . . . . . Programmers 2 | . . . . . . . . . . . . . . . . . . . . . . . . . . . 2 . . . Robots Rewired 24 | . . . 4 1 1 . . . . . . . . . . . . 16 . . . . . . . . . . 1 1 Allies Hacked 1 | . . . . . . . . . . . . . . . . . . . . . . . . . . . . . 1 . Hacks Repelled . | . . . . . . . . . . . . . . . . . . . . . . . . . . . . . . . Allies | -11 -10 -10 -10 -9 -8 -8 -7 -7 -7 -7 -6 -6 -6 -6 -6 -5 -5 -5 -5 -5 -5 -4 -4 -4 -4 -3 -3 -3 -2 -1 -------- Run | Scr Mat Min Exi Min Mat Sto Fac Low Low Zio Pro Fac Low Low Dat Pro Fac Ext Cet Arc Hub Fac Upp Upp Zhi Pro Res Tes Res Acc Total Allies 61 | . . 3 4 2 1 12 3 . . . . . . . . 1 2 22 2 . . 3 . . . . 1 . 1 4 Largest Group 10 | . . 3 4 4 1 10 3 . . . . . . . . 1 2 9 2 2 1 3 . . . . 1 . 1 4 Highest-Rated Group 417 | . . 70 70 55 16 177 93 . . . . . . . . 94 98 271 188 181 87 90 . . . . 26 . 58 417 Highest-Rated Ally 156 | . . 31 31 31 16 99 31 . . . . . . . . 94 49 156 94 94 87 30 . . . . 26 . 58 124 Total Orders 4 | . . . . . . . . . . . . . . . . . . . . . . . 1 2 . . 1 . . . GOTO 1 | . . . . . . . . . . . . . . . . . . . . . . . . 1 . . . . . . FOLLOW 2 | . . . . . . . . . . . . . . . . . . . . . . . 1 1 . . . . . . EXPLORE 1 | . . . . . . . . . . . . . . . . . . . . . . . . . . . 1 . . . Ally Attacks 551 | . . 1 . 30 7 137 47 . . . . . . . . 10 13 139 36 15 3 8 . . . . . . 8 97 Total Damage 12887 | . . 21 . 550 115 2412 671 . . . . . . . . 300 433 3259 1213 524 110 178 . . . . . . 236 2865 Kills 105 | . . 1 . 12 1 28 4 . . . . . . . . 2 . 22 10 2 1 1 . . . . . . 1 20 Allies Corrupted 2 | . . . . . . . . . . . . . . . . . . . . . . . . . . . . . . 2 Allies Melted 2 | . . . . . . . . . . . . . . . . . . 1 . . 1 . . . . . . . . . Intel | -11 -10 -10 -10 -9 -8 -8 -7 -7 -7 -7 -6 -6 -6 -6 -6 -5 -5 -5 -5 -5 -5 -4 -4 -4 -4 -3 -3 -3 -2 -1 ------- Run | Scr Mat Min Exi Min Mat Sto Fac Low Low Zio Pro Fac Low Low Dat Pro Fac Ext Cet Arc Hub Fac Upp Upp Zhi Pro Res Tes Res Acc Robot Analysis Total 15 | . 2 . . . . 2 2 . . . . 1 . . . . . 2 . . . 1 . . 4 . 1 . . . Derelict Logs Recovered 15 | . . 1 . 1 . . . 1 1 2 1 . 1 2 . 1 . . . . . . 1 3 . . . . . . Drone Launches 4 | . . . . . . . . . . . . 2 . . . . . . . . . 2 . . . . . . . . Drone Recoveries . | . . . . . . . . . . . . . . . . . . . . . . . . . . . . . . . Exploration | -11 -10 -10 -10 -9 -8 -8 -7 -7 -7 -7 -6 -6 -6 -6 -6 -5 -5 -5 -5 -5 -5 -4 -4 -4 -4 -3 -3 -3 -2 -1 ------------- Run | Scr Mat Min Exi Min Mat Sto Fac Low Low Zio Pro Fac Low Low Dat Pro Fac Ext Cet Arc Hub Fac Upp Upp Zhi Pro Res Tes Res Acc Turns Passed 37525 | 135 2019 901 1032 1008 2736 1413 2623 991 766 1766 976 2567 865 881 152 1053 1636 1840 587 193 1130 1980 598 972 344 733 1159 2121 646 1702 Spaces Moved 18003 | 65 939 499 617 530 1134 722 1276 514 429 1043 406 1221 462 385 90 544 693 646 273 95 359 890 362 552 204 424 543 934 283 869 Core 4 | 4 . . . . . . . . . . . . . . . . . . . . . . . . . . . . . . Treads 16993 | 61 939 499 617 530 1134 722 1276 514 429 1043 406 1221 462 385 90 544 693 646 273 95 359 890 362 552 204 424 543 729 87 264 Legs 1006 | . . . . . . . . . . . . . . . . . . . . . . . . . . . . 205 196 605 Wheels . | . . . . . . . . . . . . . . . . . . . . . . . . . . . . . . . Hover . | . . . . . . . . . . . . . . . . . . . . . . . . . . . . . . . Flight . | . . . . . . . . . . . . . . . . . . . . . . . . . . . . . . . Fastest Speed 50 | 50 160 160 160 160 160 160 160 167 167 167 167 167 170 170 170 170 170 170 160 160 160 160 160 160 160 160 160 100 100 100 Average Speed 160 | 153 160 160 160 160 160 160 166 168 167 167 167 167 170 170 170 170 170 170 161 160 160 160 160 160 160 160 160 146 118 114 Slowest Speed 170 | 160 160 160 160 160 160 160 170 170 167 167 167 170 170 170 170 170 170 170 170 160 160 160 160 160 160 160 160 160 160 165 Overloaded Moves . | . . . . . . . . . . . . . . . . . . . . . . . . . . . . . . . Propulsion Burnouts . | . . . . . . . . . . . . . . . . . . . . . . . . . . . . . . . Robots Hopped . | . . . . . . . . . . . . . . . . . . . . . . . . . . . . . . . Cave-ins Triggered 2 | . . 1 . . . . . . . . . . . . . . . 1 . . . . . . . . . . . . Exploration Rate (%) 62 | 4 95 97 91 96 84 92 45 83 76 90 66 27 62 63 75 77 19 81 89 85 32 20 79 76 63 60 28 63 6 23 Regions Visited 30 Branch Regions 21 Pre-discovered Areas 9 | . . 1 1 . . . . . . 3 . . . . . . . . . . . . 1 . 3 . . . . . Known Exits Taken 18 | . 1 . . . . 1 1 . . . . 1 . . . 1 1 1 1 1 1 1 1 1 1 1 1 1 1 . Unknown Exits Taken 12 | 1 . 1 1 1 1 . . 1 1 1 1 . 1 1 1 . . . . . . . . . . . . . . . Scrap Searched 28 | . . 1 . 3 . . . . 5 2 2 . 5 1 . 2 . . . . . . 3 3 . 1 . . . . Spaces Dug 160 | . . . . . 9 4 17 4 3 . 5 1 9 5 . 3 19 . 1 . 10 16 . 6 . 9 3 13 4 19 Terrain Destroyed 1083 | 5 11 21 . . 111 27 32 9 5 . 11 102 12 25 . 5 28 46 68 1 228 98 2 16 . 10 7 128 7 68 Melee 151 | . . . . . 9 4 15 4 3 . 5 1 9 5 . 3 19 . . . 6 16 . 6 . 9 3 11 4 19 Projectile 291 | . . . . . 32 11 15 5 2 . 2 15 3 4 . 2 7 46 8 1 42 31 2 10 . 1 4 33 3 12 AOE 641 | 5 11 21 . . 70 12 2 . . . 4 86 . 16 . . 2 . 60 . 180 51 . . . . . 84 . 37 Actions | -11 -10 -10 -10 -9 -8 -8 -7 -7 -7 -7 -6 -6 -6 -6 -6 -5 -5 -5 -5 -5 -5 -4 -4 -4 -4 -3 -3 -3 -2 -1 --------- Run | Scr Mat Min Exi Min Mat Sto Fac Low Low Zio Pro Fac Low Low Dat Pro Fac Ext Cet Arc Hub Fac Upp Upp Zhi Pro Res Tes Res Acc Total 23926 | 82 1315 594 657 618 1644 887 1586 580 457 1068 675 1564 510 562 89 641 1059 1132 367 127 702 1288 376 612 221 450 732 1447 540 1344 Wait 2635 | . 277 81 5 15 106 49 97 10 2 20 233 166 20 127 . 66 255 104 4 2 116 243 9 41 3 10 71 236 152 115 Move 17973 | 64 938 498 616 529 1133 721 1275 513 428 1042 405 1220 461 384 89 543 692 645 272 94 359 889 361 551 203 423 542 933 282 868 Hop . | . . . . . . . . . . . . . . . . . . . . . . . . . . . . . . . Pick Up 52 | 3 4 2 . 1 6 3 6 . . 1 . 4 . . . 1 1 3 2 1 2 1 . . . . 1 3 2 5 Fast Attach 177 | 6 2 . . 2 9 7 18 2 4 1 . 7 3 1 . 2 8 9 9 4 5 13 . . 8 . 13 28 14 2 Attach 20 | . 1 . . . 2 1 . 1 2 1 . 1 . . . 2 . 3 . . . . . . . . . 2 2 2 Detach 17 | . . . . . 1 . . 1 2 1 . . . . . 2 . 3 1 . 1 . . . . . . 3 1 1 Swap 264 | . 4 2 2 3 32 13 17 3 5 . 3 16 4 8 . 6 14 9 8 1 26 17 3 4 . 2 1 26 10 25 Drop 223 | 1 6 2 1 4 21 8 23 2 4 2 . 9 3 1 . 2 17 11 14 6 6 13 1 1 7 . 14 25 16 3 Fire 1276 | 8 71 4 5 37 197 46 68 23 7 . 9 75 7 17 . 14 25 131 28 10 101 54 2 9 . 6 39 114 26 143 Melee 199 | . . . . . 11 6 29 4 3 . 6 8 10 5 . 3 23 . . . 6 22 . 6 . 9 3 15 7 23 Ram . | . . . . . . . . . . . . . . . . . . . . . . . . . . . . . . . Kick . | . . . . . . . . . . . . . . . . . . . . . . . . . . . . . . . Crush 26 | . 1 . . . 4 3 3 . . . . 1 . . . . 2 3 . . 2 1 . . . . 4 2 . . Escape Stasis . | . . . . . . . . . . . . . . . . . . . . . . . . . . . . . . . Rewire 129 | . . . 28 5 11 . . . . . . . . 1 . . . 81 . . . . . . . . . . 2 1 Trap . | . . . . . . . . . . . . . . . . . . . . . . . . . . . . . . . Miscellaneous 935 | . 11 5 . 22 111 30 50 21 . . 19 57 2 18 . . 22 130 29 9 78 35 . . . . 44 60 26 156 Route ------- -11/Scrapyard -10/Materials (discovered 5 exits: [*Mat x3] / *Min x2) -10/Mines (discovered 3 exits: [*Mat x2] / *Exi) -10/Exiles (discovered 2 exits: [*Min x2]) -9/Mines (discovered 2 exits: *Mat x2) -8/Materials (discovered 4 exits: *Fac x3 / *Sto) -8/Storage (discovered 2 exits: *Fac / [Rec]) -7/Factory (discovered 3 exits: *Fac / *Low x2) -7/Lower Caves -7/Lower Caves (discovered 2 exits: *Fac / *Zio) -7/Zion (discovered 2 exits: [Dee] / [*Pro]) -6/Proximity Caves -6/Factory (discovered 3 exits: *Fac / *Low x2) -6/Lower Caves -6/Lower Caves (discovered 2 exits: Fac / *Dat) -6/Data Miner -5/Proximity Caves -5/Factory (discovered 5 exits: *Fac x2 / Upp / *Ext x2) -5/Extension (discovered 3 exits: *Fac x2 / *Cet) -5/Cetus (discovered 2 exits: *Fac / *Arc) -5/Archives (discovered 3 exits: *Fac / *Hub x2) -5/Hub_04(d) -4/Factory (discovered 3 exits: *Upp x2 / Arm) -4/Upper Caves -4/Upper Caves (discovered 2 exits: *Res / *Zhi) -4/Zhirov -3/Proximity Caves -3/Research (discovered 3 exits: *Res / *Tes x2) -3/Testing -2/Research (discovered 3 exits: *Acc x3) -1/Access (discovered 2 exits: *Sur / Com) To Epsilon Eridani History --------- Turn | Location | Event 10 | -11/Scrapyard | Upgraded with Propulsion slot (x1) 10 | -11/Scrapyard | Upgraded with Weapon slot (x1) 38 | -11/Scrapyard | Discovered new exit (range 16) 136 | -11/Scrapyard | Entered Materials 310 | -10/Materials | Build established: Mutant 510 | -10/Materials | Discovered new exit (range 13) 513 | -10/Materials | Identified exit to Mines 890 | -10/Materials | Discovered new exit (range 12) 957 | -10/Materials | Repaired Imp. Terrain Scanner 984 | -10/Materials | Repaired Seismic Analyzer 1327 | -10/Materials | Reached level 2 1341 | -10/Materials | Upgraded with Utility slot (x1) 1483 | -10/Materials | Discovered new exit (range 12) 1629 | -10/Materials | Central database locked down 1977 | -10/Materials | Discovered new exit (range 5) 2155 | -10/Materials | Entered Mines 2156 | -10/Mines | Learned location of Storage (-8) 2255 | -10/Mines | Learned Materials security intel 2510 | -10/Mines | Reached level 3 2510 | -10/Mines | Discovered new exit (range 9) 2514 | -10/Mines | Escorted by a lone wolf Derelict 2521 | -10/Mines | Crushed by falling debris 2739 | -10/Mines | A weapon hastily lodged in a ceiling crevice suddenly fell to the ground 2842 | -10/Mines | Deemed a non-threat by the Exiles lab entrance 2904 | -10/Mines | Discovered new exit (range 13) 3039 | -10/Mines | Discovered new exit (range 6) 3056 | -10/Mines | Entered Exiles 3056 | -10/Exiles | Found Exiles lab destroyed 3056 | -10/Exiles | Accompanied by 3 allies 3086 | -10/Exiles | Led the pair of lost Derelicts to a safe place 3800 | -10/Exiles | Learned location of Zion (-7) 3880 | -10/Exiles | Discovered new exit (range 14) 4064 | -10/Exiles | Discovered new exit (range 15) 4088 | -10/Exiles | Entered Mines 4088 | -9/Mines | Accompanied by 4 allies 4092 | -9/Mines | Reached level 4 4143 | -9/Mines | Learned Materials trap positions 4213 | -9/Mines | Assembled infested the area 4603 | -9/Mines | Discovered new exit (range 16) 4687 | -9/Mines | Met a Derelict testing a Signal Generator 4866 | -9/Mines | Discovered new exit (range 14) 4980 | -9/Mines | Upgraded with Utility slot (x1) 5096 | -9/Mines | Entered Materials 5097 | -8/Materials | Loaded intel: 33 trap records 5098 | -8/Materials | Reached level 5 5213 | -8/Materials | Reached level 6 5233 | -8/Materials | Core integrity fell below 50% 5272 | -8/Materials | Destroyed 9 combat bots 5294 | -8/Materials | Garrison activated, responded to threat 5489 | -8/Materials | Reached level 7 5598 | -8/Materials | Garrison activated, responded to threat 5698 | -8/Materials | Discovered new exit (range 17) 5882 | -8/Materials | Discovered new exit (range 13) 6210 | -8/Materials | Reached level 8 6333 | -8/Materials | Upgraded with Utility slot (x1) 6613 | -8/Materials | Discovered new exit (range 15) 6710 | -8/Materials | Reached level 9 6975 | -8/Materials | Upgraded with Utility slot (x1) 6995 | -8/Materials | Discovered new exit (range 17) 7096 | -8/Materials | First assault squad dispatched 7100 | -8/Materials | Reached level 10 7444 | -8/Materials | Reached level 11 7552 | -8/Materials | Build established: Hacker-Skirmisher 7832 | -8/Materials | Entered Storage 7969 | -8/Storage | Reached level 12 8332 | -8/Storage | Assisted by bots powering up and referring to "LRC-V3" 8415 | -8/Storage | Reached level 13 8627 | -8/Storage | Met 01-MTF 8638 | -8/Storage | Build established: Commander-Skirmisher 8661 | -8/Storage | Upgraded with Utility slot (x1) 8675 | -8/Storage | Discovered new exit (range 18) 8726 | -8/Storage | Discovered new exit (range 17) 8827 | -8/Storage | Identified exit to Factory 8909 | -8/Storage | Reached level 14 9211 | -8/Storage | Build established: Hauler-Skirmisher 9245 | -8/Storage | Entered Factory 9245 | -7/Factory | Accompanied by 1 ally 9250 | -7/Factory | 01-MTF left 9305 | -7/Factory | Upgraded with Weapon slot (x1) 9745 | -7/Factory | Reached level 15 9792 | -7/Factory | Upgraded with Propulsion slot (x1) 9971 | -7/Factory | Allied Derelicts emerged from ambush trap array 10370 | -7/Factory | Build established: Hacker-Skirmisher 10899 | -7/Factory | Reached level 16 10920 | -7/Factory | Destroyed 8 combat bots 10967 | -7/Factory | Upgraded with Utility slot (x1) 11137 | -7/Factory | Discovered new exit (range 13) 11283 | -7/Factory | Build established: Hacker-Gunner 11667 | -7/Factory | Discovered new exit (range 21) 11834 | -7/Factory | Identified exit to Lower Caves 11868 | -7/Factory | Entered Lower Caves 11986 | -7/Lower Caves | Spotted B-75 Beast 12048 | -7/Lower Caves | Destroyed B-75 Beast 12116 | -7/Lower Caves | Learned 12 Factory zone layouts 12422 | -7/Lower Caves | Found Alien Artifact 12422 | -7/Lower Caves | Identified Core Expander 12422 | -7/Lower Caves | Installed Core Expander, added new Propulsion slot 12613 | -7/Lower Caves | Attracted the attention of an 0b10 checkpoint 12753 | -7/Lower Caves | Discovered new exit (range 15) 12820 | -7/Lower Caves | Encountered a Warlord checkpoint 12859 | -7/Lower Caves | Entered another Lower Caves area 12873 | -7/Lower Caves | Discovered new exit (range 17) 13512 | -7/Lower Caves | Discovered new exit (range 17) 13530 | -7/Lower Caves | Reached level 17 13575 | -7/Lower Caves | Learned Factory machine intel 13625 | -7/Lower Caves | Entered Zion 13741 | -7/Zion | System corruption cleaned by Quarantine Array 13797 | -7/Zion | Discovered new exit (range 18) 13911 | -7/Zion | Learned Factory emergency access door positions 13978 | -7/Zion | Learned location of Quarantine (-2) 14098 | -7/Zion | Learned location of Extension (-5) 14120 | -7/Zion | Learned location of Armory (-4) 14227 | -7/Zion | Received a hallucinogenic algorithm 14368 | -7/Zion | Discovered new exit (range 13) 15133 | -7/Zion | Given A8's code to call for help 15222 | -7/Zion | Found Prototype Device 15222 | -7/Zion | Identified Phasing AFG 15391 | -7/Zion | Entered Proximity Caves 15451 | -6/Proximity Caves | Spotted B-75 Beast 15578 | -6/Proximity Caves | Attracted the attention of an 0b10 checkpoint 15819 | -6/Proximity Caves | Discovered new exit (range 6) 15855 | -6/Proximity Caves | Build established: Hacker-Assassin 16155 | -6/Proximity Caves | Build established: Hacker-Skirmisher 16168 | -6/Proximity Caves | Received a Behemoth hack from an annoying Tinkerer 16367 | -6/Proximity Caves | Entered Factory 16368 | -6/Factory | Identified exit to Lower Caves 16369 | -6/Factory | Reached level 18 16371 | -6/Factory | Loaded intel: 238 machine locations 16506 | -6/Factory | Upgraded with Utility slot (x1) 16831 | -6/Factory | Build established: Hacker-Assassin 17205 | -6/Factory | Discovered new exit (range 21) 17510 | -6/Factory | Reached level 19 17588 | -6/Factory | Spotted B-75 Beast 17595 | -6/Factory | Build established: Hacker-Gunner 17929 | -6/Factory | Build established: Hacker-Skirmisher 18117 | -6/Factory | First assault squad dispatched 18140 | -6/Factory | Upgraded with Power slot (x1) 18576 | -6/Factory | Repaired Arm. Medium Treads 18626 | -6/Factory | Core integrity fell below 50% 18890 | -6/Factory | Reached level 20 18934 | -6/Factory | Entered Lower Caves 19005 | -6/Lower Caves | Learned Factory terminal intel 19085 | -6/Lower Caves | Spotted B-75 Beast 19326 | -6/Lower Caves | Build established: Hacker-Assassin 19673 | -6/Lower Caves | Discovered new exit (range 14) 19674 | -6/Lower Caves | Cld. Ion Engine stolen by Master Thief 19799 | -6/Lower Caves | Entered another Lower Caves area 19809 | -6/Lower Caves | Discovered new exit (range 18) 20415 | -6/Lower Caves | Attracted the attention of an 0b10 checkpoint 20561 | -6/Lower Caves | Discovered new exit (range 16) 20593 | -6/Lower Caves | Build established: Hacker-Skirmisher 20600 | -6/Lower Caves | Learned Factory trap positions 20602 | -6/Lower Caves | Learned 8 Factory zone layouts 20680 | -6/Lower Caves | Entered Data Miner 20680 | -6/Data Miner | Discovered new exit (range 6) 20703 | -6/Data Miner | Met Data Miner 20782 | -6/Data Miner | Received God Mode back door access code from Data Miner 20832 | -6/Data Miner | Entered Proximity Caves 20834 | -5/Proximity Caves | Reached level 21 20837 | -5/Proximity Caves | Upgraded with Utility slot (x1) 20986 | -5/Proximity Caves | Escorted by Enhanced Grunt 21263 | -5/Proximity Caves | Attracted the attention of an 0b10 checkpoint 21460 | -5/Proximity Caves | Spotted B-75 Beast 21494 | -5/Proximity Caves | Destroyed B-75 Beast 21506 | -5/Proximity Caves | Found Prototype Device 21506 | -5/Proximity Caves | Identified Exp. Thermal Shield 21545 | -5/Proximity Caves | Learned location of 2 exits from Factory 21603 | -5/Proximity Caves | Discovered new exit (range 16) 21810 | -5/Proximity Caves | Build established: Hacker-Assassin 21884 | -5/Proximity Caves | Identified exit to Factory 21885 | -5/Proximity Caves | Entered Factory 21886 | -5/Factory | Identified exit to Extension 21887 | -5/Factory | Identified exit to Factory 21888 | -5/Factory | Identified exit to Upper Caves 21889 | -5/Factory | Loaded intel: 95 trap records 21890 | -5/Factory | Loaded intel: 21 terminal locations 21967 | -5/Factory | Fabricated Exp. Sensor Array (x1) 22195 | -5/Factory | Reached level 22 22704 | -5/Factory | Garrison activated, responded to threat 22780 | -5/Factory | Incoming assault squad redirected 23521 | -5/Factory | Entered Extension 23627 | -5/Extension | Core integrity fell below 50% 23823 | -5/Extension | Incoming investigation squad redirected 23871 | -5/Extension | Rescued a captive Derelict 23872 | -5/Extension | Rescued a captive Derelict 23882 | -5/Extension | Rescued a captive Derelict 23883 | -5/Extension | Central database locked down 23909 | -5/Extension | Incoming investigation squad redirected 23948 | -5/Extension | Incoming investigation squad redirected 23977 | -5/Extension | Reached level 23 24180 | -5/Extension | Spotted B-75 Beast 24271 | -5/Extension | Destroyed B-75 Beast 24284 | -5/Extension | Spotted B-75 Beast 24372 | -5/Extension | Destroyed B-75 Beast 24421 | -5/Extension | Disrupted transfer network 24433 | -5/Extension | Discovered exit to Factory (range 3) 24526 | -5/Extension | Core integrity fell below 20% 24751 | -5/Extension | Build established: Hacker-Skirmisher 24759 | -5/Extension | Rescued A7 24823 | -5/Extension | Rescued a captive Derelict 24839 | -5/Extension | Energy Cycler disabled 24841 | -5/Extension | Rescued a captive Derelict 24935 | -5/Extension | Crushed by falling debris 25021 | -5/Extension | First assault squad dispatched 25040 | -5/Extension | Incoming assault squad redirected 25042 | -5/Extension | Incoming assault squad redirected 25191 | -5/Extension | Discovered new exit (range 17) 25210 | -5/Extension | Reached level 24 25251 | -5/Extension | Discovered exit to Factory (range 17) 25267 | -5/Extension | Extracted ID and sensor layout for unrecognized location from A7's data core 25271 | -5/Extension | Disrupted transfer network 25271 | -5/Extension | Found Prototype Protection 25271 | -5/Extension | Identified Med. Regenerative Plating 25314 | -5/Extension | Destroyed 7 combat bots 25348 | -5/Extension | Identified exit to Cetus 25361 | -5/Extension | Entered Cetus 25382 | -5/Cetus | Spotted Cetus Guard 25382 | -5/Cetus | Spotted Cetus Guard 25382 | -5/Cetus | Spotted Cetus Guard 25382 | -5/Cetus | Spotted Cetus Guard 25396 | -5/Cetus | Destroyed Cetus Guard 25397 | -5/Cetus | Destroyed Cetus Guard 25398 | -5/Cetus | Destroyed Cetus Guard 25399 | -5/Cetus | Destroyed Cetus Guard 25692 | -5/Cetus | Found a strange terminal 25695 | -5/Cetus | Enhanced Grunt warped into view, answering call for help 25699 | -5/Cetus | Enhanced Grunt warped into view, answering call for help 25778 | -5/Cetus | Discovered new exit (range 22) 25838 | -5/Cetus | Spotted Cetus Guard 25839 | -5/Cetus | Spotted Cetus Guard 25844 | -5/Cetus | Spotted Cetus Guard 25846 | -5/Cetus | Discovered exit to Factory (range 22) 25856 | -5/Cetus | Spotted Cetus Guard 25857 | -5/Cetus | Allies destroyed Cetus Guard 25857 | -5/Cetus | Destroyed Cetus Guard 25857 | -5/Cetus | Destroyed Cetus Guard 25862 | -5/Cetus | Allies destroyed Cetus Guard 25881 | -5/Cetus | Met Revision 17 25946 | -5/Cetus | Identified exit to Archives 25948 | -5/Cetus | Entered Archives 25948 | -5/Archives | Accompanied by 2 allies 25993 | -5/Archives | Discovered exit to Factory (range 18) 26008 | -5/Archives | Discovered new exit (range 22) 26019 | -5/Archives | Found Prototype Device 26019 | -5/Archives | Identified Exp. Thermal Shield 26033 | -5/Archives | Unable to access archive contents 26048 | -5/Archives | Discovered new exit (range 22) 26058 | -5/Archives | Unable to access archive contents 26063 | -5/Archives | Build established: Scavenger-Gunner 26082 | -5/Archives | Unable to access archive contents 26099 | -5/Archives | Unable to access archive contents 26139 | -5/Archives | Identified exit to Hub_04(d) 26141 | -5/Archives | Entered Hub_04(d) 26141 | -5/Hub_04(d) | Accompanied by 1 ally 26659 | -5/Hub_04(d) | System corruption reached 10% 26663 | -5/Hub_04(d) | Reached level 25 26705 | -5/Hub_04(d) | Discovered exit to Factory (range 12) 26741 | -5/Hub_04(d) | First assault squad dispatched 26904 | -5/Hub_04(d) | Incoming assault squad redirected 27071 | -5/Hub_04(d) | Incoming assault squad redirected 27159 | -5/Hub_04(d) | Network Hub disabled 27271 | -5/Hub_04(d) | Entered Factory 27366 | -4/Factory | Fabricated L-41 Fighter (x3) 27590 | -4/Factory | Identified exit to Upper Caves 27590 | -4/Factory | Identified exit to Armory 27671 | -4/Factory | Local fabrication network quarantined 27771 | -4/Factory | First assault squad dispatched 27903 | -4/Factory | Reached level 26 27958 | -4/Factory | Upgraded with Utility slot (x1) 28044 | -4/Factory | Incoming assault squad redirected 29251 | -4/Factory | Entered Upper Caves 29251 | -4/Upper Caves | Accompanied by 2 allies 29253 | -4/Upper Caves | Attracted the attention of an 0b10 checkpoint 29318 | -4/Upper Caves | Encountered a Warlord checkpoint 29668 | -4/Upper Caves | Discovered new exit (range 19) 29848 | -4/Upper Caves | Identified exit to Upper Caves 29849 | -4/Upper Caves | Entered another Upper Caves area 29849 | -4/Upper Caves | Accompanied by 1 ally 29882 | -4/Upper Caves | Discovered new exit (range 12) 30049 | -4/Upper Caves | Encountered a Warlord checkpoint 30064 | -4/Upper Caves | Identified exit to Research 30083 | -4/Upper Caves | Build established: Hacker-Gunner 30087 | -4/Upper Caves | Learned location of 1 exit from Research 30095 | -4/Upper Caves | Attracted the attention of an 0b10 checkpoint 30313 | -4/Upper Caves | Learned Research terminal intel 30700 | -4/Upper Caves | Learned location of 1 exit from Research 30707 | -4/Upper Caves | Discovered new exit (range 17) 30732 | -4/Upper Caves | Identified exit to Zhirov 30799 | -4/Upper Caves | Build established: Hacker-Assassin 30821 | -4/Upper Caves | Entered Zhirov 30821 | -4/Zhirov | Accompanied by 1 ally 30821 | -4/Zhirov | Discovered new exit (range 3) 30850 | -4/Zhirov | Met Zhirov 30942 | -4/Zhirov | Found Alien Artifact 30942 | -4/Zhirov | Identified Integrated Reactor 30942 | -4/Zhirov | Installed Integrated Reactor, increased core energy generation (+2%) 31075 | -4/Zhirov | Learned location of Testing (-3) 31075 | -4/Zhirov | Learned location of Command (-1) 31117 | -4/Zhirov | Zhirov requested help retrieving the SGEMP Prototype 31162 | -4/Zhirov | Identified exit to Proximity Caves 31165 | -4/Zhirov | Entered Proximity Caves 31165 | -3/Proximity Caves | Accompanied by 1 ally 31167 | -3/Proximity Caves | Reached level 27 31853 | -3/Proximity Caves | Discovered exit to Research (range 10) 31898 | -3/Proximity Caves | Entered Research 31898 | -3/Research | Accompanied by 1 ally 31899 | -3/Research | Identified exit to Testing 31900 | -3/Research | Loaded intel: 17 terminal locations 32098 | -3/Research | Revision forces began assault on 0b10 32119 | -3/Research | Reached level 28 32180 | -3/Research | Met up with Revision 17++ 32214 | -3/Research | Spotted B-86 Titan 32462 | -3/Research | Build established: Hacker-Gunner 32593 | -3/Research | Discovered new exit (range 17) 32598 | -3/Research | Research terminal network offline 32810 | -3/Research | Spotted Striker 32812 | -3/Research | Spotted Striker 32823 | -3/Research | Spotted Striker 32862 | -3/Research | Spotted Striker 32863 | -3/Research | Spotted Executioner 32885 | -3/Research | Destroyed Striker 32899 | -3/Research | Destroyed Executioner 33057 | -3/Research | Entered Testing 33069 | -3/Testing | Reached level 29 33122 | -3/Testing | Found Portable AFG 33358 | -3/Testing | Repaired Imp. Phase Shifter 33686 | -3/Testing | Found Prototype Slashing Weapon 33686 | -3/Testing | Identified Centrium Greatsword 33932 | -3/Testing | Spotted PD-27QVULMMXR 33992 | -3/Testing | Spotted Striker 33992 | -3/Testing | Spotted Striker 34026 | -3/Testing | Spotted Alpha 7 34031 | -3/Testing | Destroyed Striker 34032 | -3/Testing | Destroyed Striker 34053 | -3/Testing | Destroyed Alpha 7 34057 | -3/Testing | First assault squad dispatched 34098 | -3/Testing | Found Exp. Targeting Computer 34124 | -3/Testing | Stole the SGEMP Prototype 34305 | -3/Testing | Found Prototype Device 34305 | -3/Testing | Identified Exp. Focal Shield 34370 | -3/Testing | Found Molecular Scythe 34602 | -3/Testing | Found Prototype Energy Gun 34602 | -3/Testing | Identified Hyp. EM Gauss Rifle 34691 | -3/Testing | Discovered new exit (range 17) 34734 | -3/Testing | Found Prototype Leg 34734 | -3/Testing | Identified Myomer Exoskeleton 34736 | -3/Testing | Upgraded with Propulsion slot (x1) 34826 | -3/Testing | Core integrity fell below 50% 34890 | -3/Testing | Found Prototype Device 34890 | -3/Testing | Identified Femtoactuators 34893 | -3/Testing | Found Prototype Processor 34893 | -3/Testing | Identified Exp. Core Analyzer 34902 | -3/Testing | Found Prototype Slashing Weapon 34902 | -3/Testing | Identified Vibroblade 34921 | -3/Testing | Found Prototype Processor 34921 | -3/Testing | Identified Exp. Melee Analysis Suite 35064 | -3/Testing | Incoming investigation squad redirected 35073 | -3/Testing | Identified exit to Research 35178 | -3/Testing | Entered Research 35179 | -2/Research | Core integrity fell below 50% 35180 | -2/Research | Reached level 30 35224 | -2/Research | Found Unknown Launcher 35224 | -2/Research | Identified Gamma Bomb Array 35247 | -2/Research | Identified exit to Access 35271 | -2/Research | Found Unknown Launcher 35271 | -2/Research | Identified Fusion Bomb Launcher 35717 | -2/Research | Reached level 31 35824 | -2/Research | Entered Access 35824 | -1/Access | Accompanied by 1 ally 35825 | -1/Access | Loaded intel: 118 machine locations 35825 | -1/Access | Loaded intel: 99 trap records 35825 | -1/Access | Identified exit to Surface 35825 | -1/Access | Discovered exit to Surface (range 186) 35825 | -1/Access | Identified exit to Command 35825 | -1/Access | Discovered exit to Command (range 129) 35825 | -1/Access | Delivered the SGEMP Prototype to Zhirov 35825 | -1/Access | Zhirov transferred Access data 35826 | -1/Access | Reached level 32 35826 | -1/Access | Reached level 33 35945 | -1/Access | Build established: Scavenger-Gunner 36112 | -1/Access | Reached level 34 36250 | -1/Access | Zhirov warped through subspace 36324 | -1/Access | First assault squad dispatched 36353 | -1/Access | Incoming assault squad redirected 36610 | -1/Access | System corruption reached 10% 36892 | -1/Access | Garrison activated, responded to threat 37043 | -1/Access | Reached level 35 37210 | -1/Access | Destroyed 9 combat bots 37235 | -1/Access | Build established: Hacker-Gunner 37348 | -1/Access | Incoming assault squad redirected 37526 | *** | Escaped! Last Messages --------------- >>Alert(Check) Current Alert Level: 4-O >>Alert(Purge) Purged threat record, alert level lowered. 37409_ ALERT: Suspicious activity at Terminal A019. Dispatching Investigation squad. 37428_ System corrupted: Heat flow error (+243). 37442_ Connecting with Garrison Access... >>Seal Access door sealed. 37454_ System corrupted: Heat flow error (+283). 37480_ System corrupted: FCS attempts to trigger Quantum Rifle. 37480_ System corrupted: Quantum Rifle misfires. 37517_ %TIVCBMWHJMAA7,CJC0EK3M 37517_ Connecting with Terminal... >>Open Sealed Barrier opened. 37521_ The Access Shell folds into the floor. [Achievement: Epsilon Run] [Achievement: Victory By Combat] Map ----- +----------------------------------------------------+ | ########### + ###################### | | ########### # ###################### | | ########### # ###################### | | ########### # ###################### | | ########### # ###################### | | ########### ##################################### | | ########### ##################################### | | ########### ##################################### | | ########### ##################################### | | ########### # ########################### | | ########### # ########################### | | ########### # " ################### # | | ########### # """ ################### # | | ########### # """ ################### # | | + " ################### # | | # ################### # | | # ################### # | | ########### ############################# # | | ########### ############################# # | | ########### ####### ##################### # | | ########### """T""" """" # # | | ########### """ """ """" # # | | ########### """" ###+##### | | ########### """" | | ########### "" """" | | ########### @" """" | | ########### """" | | ########### """" ###+##### | | ########### """" # | | ########### """" # | | ########### ####### ##################### | | ########### ############################# " | | ########### ############################# """ | | ##### = " ############# """ | | #### # """" ############# " | | "" ##### # """"" ############# | | """##### # """"" ############# = | | T"##### # """" ##############+###### | | """#####^^# " ############## ###### | | "" #####^^# ############## ###### | | ##### # ! ############## ###### | | ##### # ############## ###### | | ##+######## # ############## ###### | | # ##### ######+##################### ##### | | + ##### "" ##### | | # ##### = T ##### | | + ############ ##### ######## ##### | | # ############ " #####+#########h####### | | # ############ """ # + # | | # ############ G + # # | +----------------------------------------------------+ Best States ------------- Heat Dissipation 117 Energy Generation 78 Energy Capacity 730 Matter Stores 300 Matter Capacity 300 Sight Range 22 Robot Scan Range 36 Terrain Scan Range 18 Terrain Scan Density 610 Power Amplification 40 Base Temperature (-) 100 Armor Coverage 450 Resistance: KI 20 Resistance: TH 30 Weapon Cycling 25 Phase Shifting 10 Evasion (%) 50 Targeting Accuracy 12 Core Analysis 15 Recoil Reduction 4 Energy Filtering 30 Offensive Hacking 25 Item Schematics ----------------- Adv. EMP Blaster | -8/Materials | Scanalyzed Mak. Spear | -8/Materials | Scanalyzed Ion Cannon | -8/Materials | Scanalyzed Rocket Launcher | -8/Materials | Scanalyzed Cryofiber Web | -8/Materials | Scanalyzed Remote Datajack | -8/Storage | Hacked Chainsword | -7/Factory | Scanalyzed Gauss Cannon | -7/Factory | Scanalyzed Combat Drone Bay | -6/Data Miner | Free Lgt. Regenerative Plating | -6/Data Miner | Free Exp. Sensor Array | -6/Data Miner | Free Exp. Targeting Computer | -6/Data Miner | Free Tactical Coordination Suite | -6/Data Miner | Free Exp. ECM Suite | -6/Data Miner | Free Cld. Plasma Cannon | -5/Factory | Scanalyzed Matter Compressor | -5/Factory | Extracted Lrn. Terrain Scanner | -5/Factory | Extracted Adv. Sensor Array | -5/Factory | Extracted System Shield | -5/Factory | Extracted System Guard | -5/Factory | Extracted Gyrokinetic Inverter | -5/Factory | Extracted Smartbomb Launcher | -5/Factory | Extracted Imp. Power Shielding | -5/Factory | Extracted Tesla Rifle | -5/Factory | Extracted Assault Drone Bay | -4/Zhirov | Free Exp. Heat Sink | -4/Zhirov | Free Exp. Optical Array | -4/Zhirov | Free Imp. Arc Thrower | -4/Zhirov | Free Hvy. Regenerative Plating | -3/Testing | Hacked Robot Schematics ------------------ S-27 Virus | -6/Data Miner | Free L-41 Fighter | -6/Data Miner | Free X-72 Disruptor | -6/Data Miner | Free G-50 Soldier | -6/Data Miner | Free G-67 Veteran | -6/Data Miner | Free I-36 Angel | -6/Data Miner | Free Fabricated ------------ Exp. Sensor Array | x1 | -5/Factory L-41 Fighter | x3 | -4/Factory Alien Tech Used ----------------- Core Expander Integrated Reactor Achievements -------------- Epsilon Run Special Delivery Victory By Combat Challenges ------------ None RPGLIKE | -11 -10 -10 -10 -9 -8 -8 -7 -7 -7 -7 -6 -6 -6 -6 -6 -5 -5 -5 -5 -5 -5 -4 -4 -4 -4 -3 -3 -3 -2 -1 --------- Run | Scr Mat Min Exi Min Mat Sto Fac Low Low Zio Pro Fac Low Low Dat Pro Fac Ext Cet Arc Hub Fac Upp Upp Zhi Pro Res Tes Res Acc Levels Raised 34 | . 1 1 . 1 7 3 2 . 1 . . 3 . . . 1 1 2 . . 1 1 . . . 1 1 1 2 4 XP Earned 54635 | 3000 2340 1127 200 2053 10047 3990 3376 504 392 152 1079 3255 177 461 152 1094 1930 2384 663 172 979 1458 142 221 152 867 2096 1763 1832 6577 XP Spent 51410 | 2530 1600 . . 1800 10560 3750 4600 . . . . 4080 . . . 3720 1500 2270 . . 450 2900 . . . . 2060 1100 3120 5370 Upgrades 101 | 14 3 . . 2 21 3 4 . . . . 11 . . . 8 3 5 . . 3 1 . . . . 5 1 5 12 Power Slot 1 | . . . . . . . . . . . . 1 . . . . . . . . . . . . . . . . . . Propulsion Slot 3 | 1 . . . . . . 1 . . . . . . . . . . . . . . . . . . . . 1 . . Utility Slot 9 | . 1 . . 1 2 1 1 . . . . 1 . . . 1 . . . . . 1 . . . . . . . . Weapon Slot 2 | 1 . . . . . . 1 . . . . . . . . . . . . . . . . . . . . . . . Core Integrity 36 | 8 . . . . . . . . . . . 4 . . . 6 . 2 . . . . . . . . 4 . 4 8 Heat Dissipation 7 | . . . . . 4 . . . . . . . . . . . . . . . 3 . . . . . . . . . Energy Generation 4 | . . . . . . 1 . . . . . . . . . . . 1 . . . . . . . . . . . 2 Energy Storage 3 | . . . . . . . . . . . . 3 . . . . . . . . . . . . . . . . . . Inventory Capacity 8 | 2 1 . . 1 2 1 . . . . . . . . . . . . . . . . . . . . . . 1 . Sensor Range 3 | . . . . . . . . . . . . 2 . . . 1 . . . . . . . . . . . . . . Terrain Scan Density 4 | . . . . . 4 . . . . . . . . . . . . . . . . . . . . . . . . . Ranged Accuracy 2 | . . . . . 2 . . . . . . . . . . . . . . . . . . . . . . . . . Hack Attack % 5 | . . . . . 4 . 1 . . . . . . . . . . . . . . . . . . . . . . . KI Resistance % 4 | 1 . . . . 1 . . . . . . . . . . . 2 . . . . . . . . . . . . . TH Resistance % 4 | 1 1 . . . 2 . . . . . . . . . . . . . . . . . . . . . . . . . TH Damage % 4 | . . . . . . . . . . . . . . . . . 1 2 . . . . . . . . 1 . . . EX Damage % 2 | . . . . . . . . . . . . . . . . . . . . . . . . . . . . . . 2 Protomatter Created 7200 | . 168 -1 . 63 885 319 437 103 . . 209 536 10 95 . 37 201 697 299 . 710 256 . . . . 237 390 279 1270 Integrity Restored 20248 | . 258 78 . 459 2393 585 948 456 . . 391 1234 30 387 . . 489 2838 622 179 1740 768 . . . . 996 1329 603 3465 Core 18352 | . 258 78 . 459 2110 300 694 456 . . 360 880 30 387 . . 489 2785 515 149 1241 768 . . . . 996 1329 603 3465 Parts 1896 | . . . . . 283 285 254 . . . 31 354 . . . . . 53 107 30 499 . . . . . . . . . Protomatter Decayed 4272 | . 82 . . 24 . 331 126 . 47 . 51 103 5 . . 37 74 471 . . 142 . . 57 . . 2106 19 78 519 Game ------ Seed SuperchargedCatalystSheargun Manual? 0 Play Time 05:27:09 Cumulative 145.0 hours Start 2020.01.21 @ 10:46:48 End 2020.01.21 @ 17:53:39 Sessions 3 Manual Loads 0 Difficulty Rogue Special Mode Winter2019/RPGLIKE Game No. 87 Rogue 87 Adventurer 0 Explorer 0 Win Type 0 Total 2 Types 1/0/1/0/0/0/0 Lore% 54 Gallery% 73 Achievement% 58 Wizard Run 0 Options --------- ASCII 1 Keyboard 1 Movement Numpad Keybinds 0 Fullscreen 2 Font 18/X11 Map View 76x50 Tactical HUD 1 Map Filters NONE Filters NONE Steam 1 RUN: d37bd736-587d-4fac-8267-d741a56b4697